bitfinex-derivatives/quotes_SOLF0:USTF0_20250911
["timestamp","ask_amount","ask_price","bid_price","bid_amount"]
[1757574833733,0.03214862,222.51,222.47,115.26]
[1757574834229,0.03214862,222.51,222.48,122.06]
[1757574834532,7.11214862,222.51,222.48,122.06]
[1757574835038,0.03214862,222.51,222.49,7.02]
[1757574836332,0.03214862,222.51,222.48,115.04]
[1757574836738,0.03214862,222.51,222.49,7.02]
[1757574837036,0.03214862,222.51,222.48,115.04]
[1757574837437,0.03214862,222.51,222.49,7.09]
[1757574837828,0.03214862,222.51,222.48,115.04]
[1757574838340,7.64,222.5,222.48,115.04]
[1757574839044,7.64,222.5,222.48,122.13]
[1757574840133,7.64,222.5,222.48,115.04]
[1757574840336,0.03214862,222.51,222.48,122.13]
[1757574840536,0.03214862,222.51,222.49,7.09]
[1757574840836,7.67214862,222.51,222.48,115.04]
[1757574841339,7.64,222.5,222.48,115.04]
[1757574841537,7.64,222.49,222.48,115.04]
[1757574842742,1.66374847,222.5,222.48,115.04]
[1757574842743,7.64,222.5,222.48,115.04]
[1757574843042,1.69589709,222.51,222.48,122.13]
[1757574843244,0.03214862,222.51,222.48,115.04]
[1757574843437,0.03214862,222.51,222.49,7.09]
[1757574843642,0.03214862,222.51,222.48,115.04]
[1757574843843,0.03214862,222.51,222.49,7.09]
[1757574844044,0.03214862,222.51,222.48,115.04]
[1757574844244,0.03214862,222.51,222.49,7.09]
[1757574845144,0.03214862,222.51,222.48,115.04]
[1757574845340,7.67214862,222.51,222.48,115.04]
[1757574845540,7.67214862,222.51,222.48,122.13]
[1757574848245,0.03214862,222.51,222.49,7.09]
[1757574850251,0.03214862,222.51,222.48,115.04]
[1757574850543,0.03214862,222.51,222.49,7.09]
[1757574851554,7.67214862,222.51,222.48,115.04]
[1757574851754,7.67214862,222.51,222.48,122.13]
[1757574853059,7.67214862,222.51,222.48,7.09]
[1757574853356,7.64,222.5,222.49,114.78]
[1757574853554,7.64,222.5,222.48,114.78]
[1757574853858,7.64,222.5,222.45,7.09]
[1757574854045,7.64,222.5,222.44,7.09]
[1757574854250,7.64,222.5,222.46,7.09]
[1757574854654,7.64,222.5,222.45,51.42]
[1757574854854,0.03420654,222.51,222.45,51.42]
[1757574855058,0.03420654,222.51,222.46,7.09]
[1757574856052,0.03420654,222.51,222.45,51.42]
[1757574856651,0.03420654,222.51,222.46,7.09]
[1757574857051,0.03420654,222.51,222.45,51.42]
[1757574858356,0.03420654,222.51,222.46,7.09]
[1757574858556,0.03420654,222.51,222.45,51.42]
[1757574858758,0.03420654,222.51,222.41,1.66374847]
[1757574858959,0.03420654,222.51,222.42,7.09]
[1757574859355,0.03420654,222.51,222.44,7.09]
[1757574859560,1.69795501,222.51,222.44,20.41]
[1757574862163,1.69795501,222.51,222.44,13.32]
[1757574862362,1.69795501,222.51,222.45,7.09]
[1757574863367,0.03420654,222.51,222.45,7.09]
[1757574865563,0.03420654,222.51,222.45,70.17]
[1757574866767,0.03420654,222.51,222.45,7.09]
[1757574884976,0.03420654,222.51,222.45,8.75374847]
[1757574885580,0.03420654,222.51,222.45,7.09]
[1757574900689,0.03420654,222.51,222.47,7.45]
[1757574900983,0.03420654,222.51,222.46,114.1]
[1757574901184,0.03420654,222.51,222.47,7.45]
[1757574901486,0.03420654,222.51,222.46,114.1]
[1757574902189,0.03420654,222.51,222.39,7.45]
[1757574902389,7.61,222.5,222.4,114.08]
[1757574902684,7.61,222.5,222.41,7.45]
[1757574903188,7.61,222.5,222.42,114.08]
[1757574903588,7.61,222.5,222.43,7.45]
[1757574905786,0.03420654,222.51,222.43,7.45]
[1757574916997,0.03420654,222.51,222.43,10.04908925]
[1757574917202,0.03420654,222.51,222.44,7.45]
[1757574924703,7.64420654,222.51,222.45,113.78]
[1757574925607,7.64420654,222.51,222.46,113.76]
[1757574925904,7.61,222.5,222.46,113.76]
[1757574926107,7.61,222.5,222.46,121.21]
[1757574926509,0.03420654,222.51,222.46,121.21]
[1757574926708,7.61,222.5,222.46,121.21]
[1757574926900,0.03420654,222.51,222.46,121.21]
[1757574927206,7.13,222.5,222.46,121.21]
[1757574928504,7.13,222.5,222.46,113.76]
[1757574928708,7.13,222.5,222.47,7.11]
[1757574929911,0.03420654,222.51,222.47,7.11]
[1757574930209,7.16420654,222.51,222.47,7.11]
[1757574930611,0.03420654,222.51,222.47,7.11]
[1757574930911,7.13,222.5,222.47,7.11]
[1757574933911,0.03420654,222.51,222.47,7.11]
[1757574934211,7.13,222.5,222.39,7.11]
[1757574934513,0.03420654,222.51,222.4,113.64]
[1757574934811,7.13,222.5,222.39,7.11]
[1757574935011,7.13,222.48,222.4,113.62]
[1757574935610,7.15863062,222.46,222.39,7.11]
[1757574935805,7.15863062,222.46,222.4,113.62]
[1757574936008,0.02863062,222.46,222.4,113.62]
[1757574936815,7.13,222.45,222.4,113.62]
[1757574937014,0.02863062,222.46,222.4,113.62]
[1757574937416,7.13,222.45,222.4,113.62]
[1757574937615,7.15863062,222.46,222.4,113.62]
[1757574939516,9.72908925,222.45,222.38,301.96]
[1757574939716,7.13,222.44,222.39,113.6]
[1757574939915,7.13,222.4,222.38,301.96]
[1757574940111,2.59908925,222.41,222.39,113.58]
[1757574940311,7.13,222.4,222.39,113.58]
[1757574941417,7.13,222.4,222.38,113.56]
[1757574941711,2.59908925,222.41,222.38,113.56]
[1757574941917,7.13,222.4,222.38,113.56]
[1757574942416,2.59908925,222.41,222.38,113.56]
[1757574942816,7.13,222.4,222.38,113.56]
[1757574943018,2.59908925,222.41,222.38,113.56]
[1757574943313,7.13,222.4,222.33,7.11]
[1757574943612,7.13,222.4,222.34,76.84]
[1757574943816,2.59908925,222.41,222.34,76.84]
[1757574944019,7.13,222.4,222.34,76.84]
[1757574944210,2.59908925,222.41,222.34,76.84]
[1757574944413,7.13,222.4,222.34,76.84]
[1757574945119,2.59908925,222.41,222.34,76.84]
[1757574945419,7.13,222.4,222.34,76.84]
[1757574945821,2.59908925,222.41,222.34,76.84]
[1757574946216,7.13,222.4,222.34,76.84]
[1757574949325,2.62986326,222.42,222.35,7.11]
[1757574951025,7.13,222.41,222.34,76.84]
[1757574951227,2.62986326,222.42,222.34,76.84]
[1757574951621,7.13,222.41,222.34,76.84]
[1757574952328,1.66584218,222.39,222.34,76.84]
[1757574952727,7.13,222.38,222.34,76.84]
[1757574953225,1.66584218,222.39,222.34,76.84]
[1757574953427,7.13,222.38,222.34,83.95]
[1757574953726,7.13,222.38,222.34,76.84]
[1757574954329,7.13,222.38,222.34,83.95]
[1757574956129,7.13,222.38,222.35,7.11]
[1757574956626,7.13,222.38,222.34,76.84]
[1757574956931,1.66584218,222.39,222.34,76.84]
[1757574957624,7.65,222.38,222.34,76.84]
[1757574957932,1.66584218,222.36,222.3,2.06922921]
[1757574958133,7.65,222.32,222.3,2.06922921]
[1757574958335,1.66584218,222.33,222.3,2.06922921]
[1757574958728,7.65,222.32,222.3,2.06922921]
[1757574958927,1.66584218,222.31,222.3,2.06922921]
[1757574959328,9.31584218,222.31,222.3,2.06922921]
[1757574959631,1.66584218,222.31,222.3,2.06922921]
[1757574959933,1.69737195,222.33,222.3,2.06922921]
[1757574960131,0.03152977,222.33,222.31,7.55]
[1757574960726,0.47152977,222.33,222.3,2.06922921]
[1757574961032,7.65,222.31,222.3,2.06922921]
[1757574961934,8.09,222.31,222.3,2.06922921]
[1757574962535,8.09,222.31,222.17,1.66584218]
[1757574962832,1.66584218,222.26,222.21,7.55]
[1757574963033,1.66584218,222.26,222.2,113.36]
[1757574963034,1.6968724,222.26,222.2,113.36]
[1757574963531,1.6968724,222.26,222.21,7.55]
[1757574963737,0.03103022,222.26,222.21,7.55]
[1757574964629,0.03103022,222.26,222.2,113.36]
[1757574964828,0.03103022,222.26,222.21,7.55]
[1757574965429,0.03103022,222.26,222.2,113.36]
[1757574966230,0.03103022,222.26,222.21,7.55]
[1757574967338,0.03103022,222.26,222.2,120.91]
[1757574969336,1.66584218,222.25,222.2,120.91]
[1757574969742,7.65,222.24,222.2,113.36]
[1757574970137,1.66584218,222.25,222.2,113.36]
[1757574970636,7.65,222.24,222.2,113.36]
[1757574970841,1.66584218,222.25,222.2,113.36]
[1757574971042,7.65,222.24,222.2,113.36]
[1757574972339,7.65,222.22,222.2,113.36]
[1757574973139,7.65,222.22,222.18,7.55]
[1757574973544,7.65,222.22,222.16,7.55]
[1757574973837,7.65,222.22,222.12,302.14]
[1757574974045,7.65,222.2,222.12,7.55]
[1757574974243,1.66584218,222.18,222.12,7.55]
[1757574975646,7.65,222.2,222.12,7.55]
[1757574975946,1.66584218,222.18,222.12,7.55]
[1757574978349,7.65,222.2,222.12,7.55]
[1757574978547,1.66584218,222.17,222.1,115.3310925]
[1757574978846,7.65,222.2,222.11,7.55]
[1757574979047,1.66584218,222.17,222.11,7.55]
[1757574979251,0.03301185,222.16,222.1,115.3310925]
[1757574979451,0.03301185,222.16,222.11,7.55]
[1757574979748,0.03301185,222.16,222.1,115.3310925]
[1757574979949,0.03301185,222.16,222.11,7.55]
[1757574980149,0.03301185,222.16,222.1,2.0710925]
[1757574980750,0.03301185,222.16,222.11,7.55]
[1757574981144,0.03301185,222.16,222.1,2.0710925]
[1757574981652,0.03301185,222.16,222.11,7.55]
[1757574981845,0.03301185,222.16,222.1,2.0710925]
[1757574982046,9.31584218,222.14,222.11,7.55]
[1757574982649,1.66584218,222.14,222.11,7.55]
[1757574982952,1.66584218,222.14,222.1,2.0710925]
[1757574983153,1.66584218,222.14,222.11,7.55]
[1757574983850,1.66584218,222.14,222.1,2.0710925]
[1757574984151,1.66584218,222.14,222.11,7.55]
[1757574984753,0.03301185,222.16,222.11,7.55]
[1757574985652,0.03301185,222.16,222.1,2.0710925]
[1757574985848,0.03301185,222.16,222.11,7.55]
[1757574986244,0.03301185,222.16,222.1,2.0710925]
[1757574987155,0.03301185,222.16,222.11,7.24]
[1757574987351,0.03301185,222.16,222.1,2.0710925]
[1757574987654,0.03301185,222.16,222.12,7.24]
[1757574988046,0.03301185,222.16,222.12,8.90584218]
[1757574988558,0.03301185,222.16,222.13,7.24]
[1757574988959,0.03301185,222.16,222.11,0.03395889]
[1757574989153,0.03301185,222.16,222.12,7.24]
[1757574989349,0.03301185,222.16,222.11,1.69980107]
[1757574989659,0.03301185,222.16,222.11,0.03395889]
[1757574989854,0.03301185,222.16,222.12,7.24]
[1757574990056,0.03301185,222.16,222.11,0.03395889]
[1757574990759,0.03301185,222.16,222.12,7.24]
[1757574991161,0.03301185,222.16,222.11,0.03395889]
[1757574991963,7.68,222.15,222.12,7.24]
[1757574992163,0.03301185,222.16,222.12,7.24]
[1757574992362,7.71301185,222.16,222.12,7.24]
[1757574992860,7.71301185,222.16,222.11,0.03395889]
[1757574993062,7.71301185,222.16,222.12,7.24]
[1757574993365,7.71301185,222.16,222.11,0.03395889]
[1757574993866,7.71301185,222.16,222.12,7.24]
[1757574994760,0.03301185,222.16,222.12,7.24]
[1757574994955,7.68,222.15,222.12,7.24]
[1757574995358,0.03301185,222.16,222.11,0.03395889]
[1757574995559,7.68,222.15,222.11,7.27395889]
[1757574995758,7.68,222.15,222.12,7.24]
[1757574996665,7.68,222.15,222.11,0.03395889]
[1757574996859,7.68,222.15,222.11,7.27395889]
[1757574997063,7.68,222.15,222.11,0.03395889]
[1757574997460,1.66584218,222.14,222.11,0.03395889]
[1757574997667,7.68,222.13,222.11,0.03395889]
[1757574997970,1.66584218,222.14,222.11,0.03395889]
[1757574998269,7.68,222.13,222.11,0.03395889]
[1757574999567,1.66584218,222.14,222.11,0.03395889]
[1757574999771,7.68,222.13,222.11,0.03395889]
[1757575001072,7.68,222.12,222.11,0.03395889]
[1757575001971,8.14,222.12,222.11,0.03395889]
[1757575002373,7.68,222.12,222.11,0.03395889]
[1757575006068,0.03301185,222.16,222.12,7.24]
[1757575006275,7.68,222.15,222.12,7.24]
[1757575006573,1.69885403,222.16,222.11,0.03395889]
[1757575006768,7.68,222.15,222.11,0.03395889]
[1757575007073,7.68,222.15,222.11,7.27395889]
[1757575007572,7.68,222.15,222.11,0.03395889]
[1757575007774,7.68,222.15,222.12,7.24]
[1757575009171,7.68,222.15,222.11,0.03395889]
[1757575009568,1.69885403,222.16,222.11,0.03395889]
[1757575010074,7.68,222.15,222.11,0.03395889]
[1757575010276,1.69885403,222.16,222.11,0.03395889]
[1757575010475,7.68,222.15,222.11,0.03395889]
[1757575010872,1.69885403,222.16,222.11,0.03395889]
[1757575011169,7.68,222.15,222.11,0.03395889]
[1757575011375,1.69885403,222.16,222.11,0.03395889]
[1757575011574,1.69885403,222.16,222.11,7.27395889]
[1757575011967,7.68,222.15,222.11,7.27395889]
[1757575012173,9.34584218,222.15,222.11,7.27395889]
[1757575012576,0.03301185,222.16,222.11,0.03395889]
[1757575012776,7.71301185,222.16,222.12,7.24]
[1757575012968,7.71301185,222.16,222.11,0.03395889]
[1757575013172,0.03301185,222.16,222.12,7.24]
[1757575013574,0.03301185,222.16,222.11,0.03395889]
[1757575013876,0.03301185,222.16,222.12,7.24]
[1757575014075,0.03301185,222.16,222.11,0.03395889]
[1757575014276,7.71301185,222.16,222.12,7.24]
[1757575015178,7.68,222.15,222.12,7.24]
[1757575017380,7.55,222.15,222.11,0.03395889]
[1757575017576,0.03301185,222.16,222.11,0.03395889]
[1757575017779,7.55,222.15,222.11,7.69395889]
[1757575018476,7.55,222.15,222.11,0.03395889]
[1757575018681,7.55,222.15,222.12,7.66]
[1757575019180,0.03301185,222.16,222.11,0.03395889]
[1757575019379,0.03301185,222.16,222.12,7.66]
[1757575019984,7.55,222.25,222.12,7.66]
[1757575021284,0.03057034,222.21,222.16,0.03101222]
[1757575021484,0.03057034,222.21,222.17,7.66]
[1757575022181,0.03057034,222.21,222.16,0.03101222]
[1757575022377,0.03057034,222.21,222.17,7.66]
[1757575022883,7.55,222.2,222.17,7.66]
[1757575023083,0.03057034,222.21,222.16,0.03101222]
[1757575023579,7.55,222.2,222.16,0.03101222]
[1757575026185,7.55,222.2,222.16,7.69101222]
[1757575026682,0.03057034,222.21,222.16,7.69101222]
[1757575026879,0.03057034,222.21,222.16,0.03101222]
[1757575027086,7.55,222.2,222.16,0.03101222]
[1757575027883,0.03057034,222.21,222.16,0.03101222]
[1757575028282,7.55,222.2,222.16,0.03101222]
[1757575028786,0.03057034,222.21,222.16,0.03101222]
[1757575028987,7.55,222.2,222.16,0.03101222]
[1757575029788,0.03057034,222.21,222.16,0.03101222]
[1757575030185,7.55,222.2,222.16,0.03101222]
[1757575030381,0.03057034,222.21,222.16,0.03101222]
[1757575031084,7.55,222.2,222.16,0.03101222]
[1757575031280,2.6075873,222.19,222.16,0.03101222]
[1757575032190,7.55,222.18,222.16,0.03101222]
[1757575032686,2.6075873,222.19,222.16,0.03101222]
[1757575033086,7.55,222.18,222.16,0.03101222]
[1757575033487,2.6075873,222.19,222.16,0.03101222]
[1757575033781,7.55,222.18,222.16,0.03101222]
[1757575033987,7.55,222.2,222.16,7.69101222]
[1757575034386,0.03057034,222.21,222.16,7.69101222]
[1757575034586,7.55,222.2,222.16,7.69101222]
[1757575034785,0.03057034,222.21,222.16,0.03101222]
[1757575034988,7.55,222.2,222.16,0.03101222]
[1757575035792,0.03057034,222.21,222.16,0.03101222]
[1757575035988,7.55,222.2,222.16,0.03101222]
[1757575036190,0.03057034,222.21,222.16,0.03101222]
[1757575036386,7.55,222.2,222.16,0.03101222]
[1757575036586,0.03057034,222.21,222.16,0.03101222]
[1757575036787,7.55,222.2,222.16,0.03101222]
[1757575037082,0.03057034,222.21,222.16,0.03101222]
[1757575037287,7.55,222.2,222.16,0.03101222]
[1757575037487,0.03057034,222.21,222.16,0.03101222]
[1757575037894,7.55,222.2,222.16,0.03101222]
[1757575038596,0.03057034,222.21,222.16,0.03101222]
[1757575038796,7.55,222.2,222.16,0.03101222]
[1757575039094,0.03057034,222.21,222.16,0.03101222]
[1757575039295,7.55,222.2,222.16,0.03101222]
[1757575039599,0.03057034,222.21,222.16,0.03101222]
[1757575039793,7.55,222.2,222.16,0.03101222]
[1757575039993,2.6075873,222.19,222.16,0.03101222]
[1757575040395,7.55,222.18,222.16,0.03101222]
[1757575041397,2.6075873,222.19,222.16,0.03101222]
[1757575041697,7.55,222.18,222.16,0.03101222]
[1757575042390,2.6075873,222.19,222.16,0.03101222]
[1757575042590,7.55,222.18,222.16,0.03101222]
[1757575042792,2.6075873,222.19,222.16,0.03101222]
[1757575042998,7.55,222.18,222.16,0.03101222]
[1757575043198,2.6075873,222.19,222.16,0.03101222]
[1757575043399,7.55,222.18,222.16,0.03101222]
[1757575043598,2.6075873,222.19,222.16,0.03101222]
[1757575043798,7.55,222.18,222.16,0.03101222]
[1757575045398,7.55,222.2,222.16,7.69101222]
[1757575045598,0.03057034,222.21,222.16,7.69101222]
[1757575046301,7.55,222.2,222.16,7.69101222]
[1757575046599,7.55,222.2,222.17,7.66]
[1757575051704,6.98,222.2,222.16,0.03101222]
[1757575051905,6.98,222.2,222.16,7.65101222]
[1757575052602,6.98,222.2,222.16,0.03101222]
[1757575052808,0.03057034,222.21,222.16,0.03101222]
[1757575053507,6.98,222.2,222.16,0.03101222]
[1757575053708,0.03057034,222.21,222.16,7.65101222]
[1757575054103,6.98,222.2,222.16,7.65101222]
[1757575054298,0.03057034,222.21,222.16,7.65101222]
[1757575054606,6.98,222.2,222.16,7.65101222]
[1757575056407,0.03057034,222.21,222.17,7.62]
[1757575056711,0.03057034,222.21,222.16,0.03101222]
[1757575057208,0.03057034,222.21,222.17,7.62]
[1757575057409,7.01057034,222.21,222.17,7.62]
[1757575057610,6.98,222.2,222.17,7.62]
[1757575057812,7.01057034,222.21,222.17,7.62]
[1757575058611,7.01057034,222.21,222.16,0.03101222]
[1757575059712,0.03057034,222.21,222.17,7.62]
[1757575059904,0.03057034,222.21,222.16,0.03101222]
[1757575060102,0.03057034,222.21,222.17,7.62]
[1757575060504,0.03057034,222.21,222.16,0.03101222]
[1757575060703,0.03057034,222.21,222.17,7.62]
[1757575060911,0.03057034,222.21,222.16,0.03101222]
[1757575061508,0.03057034,222.21,222.17,7.62]
[1757575061706,0.03057034,222.21,222.16,0.03101222]
[1757575061907,0.03057034,222.21,222.17,7.62]
[1757575062811,0.03057034,222.21,222.16,0.03101222]
[1757575064014,0.03057034,222.21,222.17,7.62]
[1757575064608,0.03057034,222.21,222.16,0.03101222]
[1757575064814,0.03057034,222.21,222.17,7.62]
[1757575065015,0.03057034,222.21,222.16,0.03101222]
[1757575065416,0.03057034,222.21,222.17,7.62]
[1757575066120,0.03057034,222.21,222.16,0.03101222]
[1757575066621,0.03057034,222.21,222.17,7.62]
[1757575067117,0.03057034,222.21,222.17,8.08]
[1757575068818,0.03057034,222.21,222.17,0.46]
[1757575069024,0.03057034,222.21,222.17,27.86]
[1757575069320,0.03057034,222.21,222.18,7.62]
[1757575069925,0.03057034,222.21,222.17,27.86]
[1757575070225,0.03057034,222.21,222.18,7.62]
[1757575070823,0.03057034,222.21,222.17,27.86]
[1757575071128,0.03057034,222.21,222.18,7.62]
[1757575072227,0.03057034,222.21,222.17,7.62]
[1757575072621,0.03057034,222.21,222.16,0.03101222]
[1757575073828,0.03057034,222.21,222.17,7.62]
[1757575074024,0.03057034,222.21,222.16,0.03101222]
[1757575074331,0.03057034,222.21,222.17,7.62]
[1757575074532,0.03057034,222.21,222.16,0.03101222]
[1757575074928,0.03057034,222.21,222.17,7.62]
[1757575075124,0.03057034,222.21,222.16,0.03101222]
[1757575075329,0.03057034,222.21,222.17,7.62]
[1757575076432,0.03057034,222.21,222.16,0.03101222]
[1757575077533,0.03057034,222.21,222.17,7.13]
[1757575077826,0.03057034,222.21,222.16,0.03101222]
[1757575078335,0.03057034,222.21,222.17,7.13]
[1757575078543,0.03057034,222.21,222.16,0.03101222]
[1757575078726,0.03057034,222.21,222.17,7.13]
[1757575078929,0.03057034,222.21,222.16,0.03101222]
[1757575079129,0.03057034,222.21,222.17,7.13]
[1757575080036,0.03057034,222.21,222.16,0.03101222]
[1757575080037,0.03057034,222.21,222.19,7.13]
[1757575080434,7.03,222.28,222.19,7.13]
[1757575081536,7.03,222.26,222.21,0.03295515]
[1757575082228,1.6676409,222.27,222.21,0.03295515]
[1757575082938,7.03,222.26,222.21,0.03295515]
[1757575083537,1.6676409,222.27,222.21,0.03295515]
[1757575083739,7.03,222.26,222.21,0.03295515]
[1757575083932,1.6676409,222.27,222.21,0.03295515]
[1757575084941,7.03,222.26,222.21,0.03295515]
[1757575085337,1.6676409,222.27,222.21,0.03295515]
[1757575085934,7.03,222.26,222.22,7.13]
[1757575086434,1.6676409,222.28,222.22,0.03437457]
[1757575087134,7.03,222.27,222.22,0.03437457]
[1757575087538,1.6676409,222.28,222.22,0.03437457]
[1757575087841,7.03,222.27,222.22,0.03437457]
[1757575088140,1.6676409,222.25,222.22,0.03437457]
[1757575088434,7.03,222.24,222.22,0.03437457]
[1757575089342,1.6676409,222.25,222.22,0.03437457]
[1757575089541,7.03,222.24,222.22,0.03437457]
[1757575090340,0.44,222.23,222.1,9.2010925]
[1757575090541,7.03,222.16,222.1,9.2010925]
[1757575096544,8.6976409,222.16,222.1,2.0710925]
[1757575097046,1.6676409,222.13,222.1,2.0710925]
[1757575097241,1.6676409,222.13,222.1,1.77473952]
[1757575097447,7.03,222.12,222.1,1.77473952]
[1757575097944,1.6676409,222.13,222.1,1.77473952]
[1757575098144,7.03,222.12,222.1,1.77473952]
[1757575099345,1.6676409,222.13,222.1,1.77473952]
[1757575099545,7.03,222.12,222.1,1.77473952]
[1757575099847,1.6676409,222.13,222.1,1.77473952]
[1757575100847,7.03,222.12,222.1,1.77473952]
[1757575101045,1.6676409,222.13,222.1,1.77473952]
[1757575101249,7.03,222.12,222.1,1.77473952]
[1757575102046,7.03,222.11,222.1,1.77473952]
[1757575107158,1.6676409,222.12,222.1,1.77473952]
[1757575107352,8.6176409,222.12,222.1,1.77473952]
[1757575108661,6.95,222.12,222.1,1.77473952]
[1757575109756,1.6676409,222.14,222.1,1.77473952]
[1757575110147,35.22,222.22,222.1,1.77473952]
[1757575110148,6.95,222.21,222.1,1.77473952]
[1757575110347,8.6176409,222.12,222.1,1.77473952]
[1757575110553,1.6676409,222.12,222.1,1.77473952]
[1757575110754,6.95,222.11,222.1,1.77473952]
[1757575113058,6.95,222.12,222.1,1.77473952]
[1757575117759,6.95,222.12,222.1,9.39473952]
[1757575118255,1.6676409,222.13,222.11,7.62]
[1757575118461,6.95,222.16,222.1,1.77473952]
[1757575118761,6.95,222.16,222.11,7.62]
[1757575119161,6.95,222.19,222.11,7.62]
[1757575120862,8.6176409,222.23,222.11,7.62]
[1757575121759,6.95,222.26,222.13,7.62]
[1757575121959,8.6176409,222.26,222.13,7.62]
[1757575125062,6.95,222.26,222.13,7.62]
[1757575125264,8.6176409,222.24,222.13,7.62]
[1757575128062,6.95,222.24,222.13,7.62]
[1757575128366,6.95,222.24,222.14,1.6676409]
[1757575128666,6.95,222.24,222.15,7.62]
[1757575133273,92.26269275,222.32,222.15,7.62]
[1757575133470,1.6676409,222.3,222.17,1.6676409]
[1757575133769,6.95,222.29,222.18,7.62]
[1757575134165,6.95,222.29,222.2,1.6676409]
[1757575134364,92.26269275,222.32,222.21,7.62]
[1757575134570,99.21269275,222.32,222.21,7.62]
[1757575134770,99.21269275,222.32,222.21,9.2876409]
[1757575134970,99.21269275,222.32,222.21,7.62]
[1757575135272,100.88033365,222.32,222.21,7.62]
[1757575135473,99.21269275,222.32,222.21,7.62]
[1757575135779,100.88033365,222.32,222.21,7.62]
[1757575136173,99.21269275,222.32,222.21,7.62]
[1757575137974,6.95,222.32,222.21,7.62]
[1757575139273,6.95,222.32,222.23,6.94]
[1757575140378,7.39,222.34,222.23,48.78]
[1757575140573,2.60429712,222.35,222.23,48.78]
[1757575140878,7.39,222.34,222.23,48.78]
[1757575141375,2.60429712,222.35,222.23,48.78]
[1757575141571,2.60429712,222.35,222.23,6.94]
[1757575141780,2.60429712,222.31,222.21,47.42]
[1757575142274,7.39,222.3,222.19,6.94]
[1757575151988,2.60429712,222.29,222.19,6.94]
[1757575152388,7.39,222.28,222.19,6.94]
[1757575156894,2.60429712,222.34,222.19,6.94]
[1757575157191,7.39,222.33,222.19,6.94]
[1757575159895,9.99429712,222.33,222.19,6.94]
[1757575160900,2.60429712,222.29,222.19,6.94]
[1757575161101,7.39,222.28,222.19,6.94]
[1757575164802,2.60429712,222.33,222.19,6.94]
[1757575165101,7.39,222.32,222.19,6.94]
[1757575169101,9.99429712,222.32,222.19,6.94]
[1757575172007,7.39,222.32,222.19,6.94]
[1757575172208,9.99429712,222.32,222.19,6.94]
[1757575189131,7.49,222.27,222.23,7.15009784]
[1757575189527,0.03422274,222.28,222.23,7.15009784]
[1757575189831,7.49,222.27,222.23,7.15009784]
[1757575190430,7.49,222.27,222.23,0.03009784]
[1757575190631,7.49,222.27,222.24,7.12]
[1757575194032,0.03422274,222.28,222.24,7.12]
[1757575194228,0.03422274,222.28,222.23,0.03009784]
[1757575194430,0.03422274,222.28,222.24,7.12]
[1757575198335,0.03422274,222.28,222.25,1.66622921]
[1757575198534,0.03422274,222.28,222.26,7.6]
[1757575199035,0.03422274,222.28,222.25,1.66622921]
[1757575199433,0.03422274,222.28,222.26,7.6]
[1757575199635,0.03422274,222.28,222.26,1.66622921]
[1757575199934,7.49,222.34,222.27,7.6]
[1757575201130,7.49,222.34,222.28,0.03151495]
[1757575202934,7.49,222.34,222.28,7.63151495]
[1757575205443,7.41,222.4,222.28,7.63151495]
[1757575205644,7.41,222.4,222.31,7.6]
[1757575206245,7.41,222.4,222.33,0.03422229]
[1757575208248,9.07622921,222.4,222.33,0.03422229]
[1757575208848,7.41,222.4,222.33,0.03422229]
[1757575209846,7.41,222.4,222.33,9.3004515]
[1757575211351,7.41,222.45,222.33,9.3004515]
[1757575212255,7.41,222.45,222.33,7.63422229]
[1757575212447,7.41,222.45,222.33,9.3004515]